fUST/lending_fUST_20240611
["ID","MTS","AMOUNT","RATE_DAILY","PERIOD"]
[329106215,1718109050645,-151.0,0.00022191,2]
[329106217,1718109050656,-500.0,0.00022191,2]
[329106219,1718109050667,-500.0,0.00022191,2]
[329106221,1718109050677,-500.0,0.00022191,2]
[329106223,1718109050687,-500.0,0.00022191,2]
[329106225,1718109050697,-500.0,0.00022191,2]
[329106227,1718109050708,-500.0,0.00022191,2]
[329106229,1718109050718,-12371.73,0.00022191,2]
[329106231,1718109050728,-500.0,0.00022191,2]
[329106233,1718109050738,-311.28308338,0.00022191,2]
[329106235,1718109050748,-500.0,0.00022191,2]
[329106237,1718109050758,-500.0,0.00022191,2]
[329106239,1718109050768,-500.0,0.00022191,2]
[329106241,1718109050779,-1263.755994,0.00022191,2]
[329106243,1718109050789,-500.0,0.00022191,2]
[329106245,1718109050799,-500.0,0.00022191,2]
[329106247,1718109050809,-500.0,0.00022191,2]
[329106249,1718109050819,-500.0,0.00022191,2]
[329106251,1718109050830,-500.0,0.00022191,2]
[329106253,1718109050840,-500.0,0.00022191,2]
[329106255,1718109050850,-501.71349734,0.00022191,2]
[329106257,1718109050861,-151.0,0.00022191,2]
[329106259,1718109050871,-151.0,0.00022191,2]
[329106261,1718109050881,-1263.755994,0.00022191,2]
[329106263,1718109050891,-500.0,0.00022191,2]
[329106265,1718109050901,-500.0,0.00022191,2]
[329106267,1718109050911,-501.89900023,0.00022191,2]
[329106269,1718109050922,-500.0,0.00022191,2]
[329106271,1718109050932,-1560.62,0.00022191,2]
[329106273,1718109050942,-2930.46,0.00022191,2]
[329106275,1718109050952,-500.0,0.00022191,2]
[329106277,1718109050963,-500.0,0.00022191,2]
[329106279,1718109050973,-151.0,0.00022191,2]
[329106281,1718109050984,-151.0,0.00022191,2]
[329106283,1718109050994,-500.0,0.00022191,2]
[329106285,1718109051004,-500.0,0.00022191,2]
[329106287,1718109051014,-1000.0,0.00022191,2]
[329106288,1718109051029,-151.0,0.00022191,2]
[329106290,1718109051039,-1000.0,0.00022191,2]
[329106292,1718109051050,-500.0,0.00022191,2]
[329106295,1718109051062,-502.03797108,0.00022191,2]
[329106297,1718109051073,-151.0,0.00022191,2]
[329106299,1718109051084,-500.0,0.00022191,2]
[329106301,1718109051094,-326.876926,0.00022191,2]
[329106303,1718109051106,-498.0,0.00022191,2]
[329106305,1718109051118,-500.0,0.00022191,2]
[329106307,1718109051129,-151.0,0.00022191,2]
[329106309,1718109051139,-500.0,0.00022191,2]
[329106311,1718109051150,-500.0,0.00022191,2]
[329106313,1718109051160,-151.0,0.00022191,2]
[329106315,1718109051172,-1756.19,0.00022191,2]
[329106317,1718109051182,-500.0,0.00022191,2]
[329106319,1718109051192,-151.0,0.00022191,2]
[329106321,1718109051202,-151.0,0.00022191,2]
[329106323,1718109051213,-500.0,0.00022191,2]
[329106325,1718109051223,-2335.99,0.00022191,2]
[329106327,1718109051234,-500.0,0.00022191,2]
[329106329,1718109051244,-2583.68,0.00022191,2]
[329106331,1718109051260,-500.0,0.00022191,2]
[329106333,1718109051271,-500.0,0.00022191,2]
[329106335,1718109051281,-500.0,0.00022191,2]
[329106337,1718109051291,-500.0,0.00022191,2]
[329106339,1718109051301,-562.34,0.00022191,2]
[329106341,1718109051311,-500.0,0.00022191,2]
[329106343,1718109051322,-289.68521563,0.00022191,2]
[329106345,1718109051332,-267.85594839,0.00022191,2]
[329106347,1718109051343,-500.0,0.00022191,2]
[329106349,1718109051353,-500.0,0.00022191,2]
[329106351,1718109051364,-500.0,0.00022191,2]
[329106353,1718109051374,-500.0,0.00022191,2]
[329106355,1718109051386,-500.0,0.00022191,2]
[329106357,1718109051397,-500.0,0.00022191,2]
[329106359,1718109051408,-604.80974932,0.00022191,2]
[329106361,1718109051418,-500.0,0.00022191,2]
[329106363,1718109051428,-500.0,0.00022191,2]
[329106365,1718109051438,-500.0,0.00022191,2]
[329106367,1718109051448,-500.0,0.00022191,2]
[329106368,1718109051458,-500.0,0.00022191,2]
[329106370,1718109051468,-255.1854128,0.00022191,2]
[329106372,1718109051478,-500.0,0.00022191,2]
[329106374,1718109051487,-500.0,0.00022191,2]
[329106376,1718109051496,-500.0,0.00022191,2]
[329106378,1718109051506,-500.0,0.00022191,2]
[329106380,1718109051517,-500.0,0.00022191,2]
[329106382,1718109051527,-500.0,0.00022191,2]
[329106384,1718109051537,-500.0,0.00022191,2]
[329106386,1718109051548,-500.0,0.00022191,2]
[329106388,1718109051558,-500.0,0.00022191,2]
[329106390,1718109051568,-500.0,0.00022191,2]
[329106392,1718109051578,-500.0,0.00022191,2]
[329106394,1718109051589,-500.0,0.00022191,2]
[329106396,1718109051599,-500.0,0.00022191,2]
[329106398,1718109051609,-1170.69,0.00022191,2]
[329106400,1718109051620,-3525.49,0.00022191,2]
[329106402,1718109051632,-544.93,0.00022191,2]
[329106404,1718109051643,-500.0,0.00022191,2]
[329106406,1718109051653,-305.16458433,0.00022191,2]
[329106408,1718109051663,-500.0,0.00022191,2]
[329106410,1718109051674,-599.09,0.00022191,2]
[329106412,1718109051686,-500.0,0.00022191,2]
[329106413,1718109051696,-500.0,0.00022191,2]
[329106414,1718109051706,-500.0,0.00022191,2]
[329106415,1718109051716,-500.0,0.00022191,2]
[329106416,1718109051726,-500.0,0.00022191,2]
[329106417,1718109051736,-151.0,0.00022191,2]
[329106418,1718109051746,-500.0,0.00022191,2]
[329106420,1718109051756,-500.0,0.00022191,2]
[329106422,1718109051766,-500.0,0.00022191,2]
[329106424,1718109051776,-549.97960982,0.00022191,2]
[329106426,1718109051786,-500.0,0.00022191,2]
[329106428,1718109051797,-500.0,0.00022191,2]
[329106430,1718109051807,-500.0,0.00022191,4]
[329106432,1718109051817,-1052.700742,0.00022191,2]
[329106434,1718109051827,-500.0,0.00022191,2]
[329106436,1718109051838,-500.0,0.00022191,2]
[329106438,1718109051849,-500.0,0.00022191,2]
[329106440,1718109051859,-1052.700742,0.00022191,2]
[329106442,1718109051869,-500.0,0.00022191,2]
[329106444,1718109051879,-500.0,0.00022191,2]
[329106446,1718109051889,-500.0,0.00022191,2]
[329106448,1718109051900,-500.0,0.00022191,2]
[329106450,1718109051910,-500.0,0.00022191,2]
[329106452,1718109051922,-2354.36,0.00022191,2]
[329106454,1718109051932,-500.0,0.00022191,2]
[329106456,1718109051942,-642.42,0.00022191,2]
[329106458,1718109051953,-500.0,0.00022191,2]
[329106460,1718109051963,-500.0,0.00022191,2]
[329106462,1718109051973,-500.0,0.00022191,2]
[329106464,1718109051983,-500.0,0.00022191,2]
[329106466,1718109051992,-500.0,0.00022191,2]
[329106468,1718109052001,-500.0,0.00022191,2]
[329106470,1718109052011,-151.0,0.00022191,2]
[329106472,1718109052026,-151.0,0.00022191,2]
[329106474,1718109052035,-151.0,0.00022191,2]
[329106482,1718109052119,-500.0,0.00022191,2]
[329106484,1718109052129,-500.0,0.00022191,2]
[329106486,1718109052139,-151.0,0.00022191,2]
[329106488,1718109052149,-500.0,0.00022191,2]
[329106490,1718109052159,-410.3,0.00022231,3]
[329106492,1718109052169,-190.7,0.00022231,3]
[329106494,1718109052179,-151.0,0.00022351,2]
[329106496,1718109052188,-151.0,0.00022351,2]
[329106498,1718109052198,-151.0,0.00022351,2]
[329106500,1718109052207,-151.0,0.00022351,2]
[329106502,1718109052217,-1263.755994,0.00022351,2]
[329106504,1718109052227,-1263.755994,0.00022351,2]
[329106506,1718109052237,-151.0,0.00022351,2]
[329106508,1718109052251,-1052.700742,0.00022351,2]
[329106510,1718109052263,-1052.700742,0.00022351,2]
[329106512,1718109052274,-151.0,0.00022351,2]
[329106514,1718109052284,-151.0,0.00022351,2]
[329106516,1718109052294,-151.0,0.00022351,2]
[329106518,1718109052304,-151.0,0.00022351,2]
[329106520,1718109052314,-205.3436861,0.00022351,2]
[329106522,1718109052324,-153.0,0.00022351,2]
[329106524,1718109052335,-306.1746834,0.00022351,2]
[329106526,1718109052345,-221.9335218,0.00022351,2]
[329106528,1718109052357,-57.83205498,0.00022351,2]
[329106544,1718109052522,-147.51163112,0.00022351,2]
[329106546,1718109052534,-292.5249381,0.00022351,2]
[329106548,1718109052544,-153.0,0.00022351,2]
[329106550,1718109052554,-153.0,0.00022351,2]
[329106552,1718109052564,-292.5249381,0.00022351,2]
[329106555,1718109052575,-205.3436861,0.00022351,2]
[329106556,1718109052585,-153.0,0.00022351,2]
[329106559,1718109052595,-153.0,0.00022351,2]
[329106560,1718109052605,-306.0,0.00022351,2]
[329106562,1718109052615,-292.5249381,0.00022351,2]
[329106564,1718109052625,-306.7364337,0.00022351,2]
[329106566,1718109052635,-153.0,0.00022351,2]
[329106568,1718109052644,-205.3436861,0.00022351,2]
[329106570,1718109052654,-153.0,0.00022351,2]
[329106572,1718109052664,-153.0,0.00022351,2]
[329106574,1718109052677,-153.0,0.00022351,2]
[329106576,1718109052687,-153.0,0.00022351,2]
[329106578,1718109052697,-292.5249381,0.00022351,2]
[329106580,1718109052706,-153.0,0.00022351,2]
[329106582,1718109052716,-205.3436861,0.00022351,2]
[329106584,1718109052727,-153.0,0.00022351,2]
[329106586,1718109052736,-307.457605,0.00022351,2]
[329106588,1718109052748,-292.5249381,0.00022351,2]
[329106590,1718109052760,-153.0,0.00022351,2]
[329106592,1718109052771,-308.3270416,0.00022351,2]
[329106594,1718109052780,-410.0094638,0.00022351,2]
[329106596,1718109052792,-153.0,0.00022351,2]
[329106598,1718109052802,-153.0,0.00022351,2]
[329106600,1718109052812,-153.0,0.00022351,2]
[329106601,1718109052822,-292.5249381,0.00022351,2]
[329106603,1718109052833,-205.3436861,0.00022351,2]
[329106605,1718109052843,-205.3436861,0.00022351,2]
[329106607,1718109052855,-292.5249381,0.00022351,2]
[329106610,1718109052865,-292.5249381,0.00022351,2]
[329106612,1718109052876,-205.3436861,0.00022351,2]
[329106613,1718109052886,-153.0,0.00022351,2]
[329106615,1718109052897,-292.5249381,0.00022351,2]
[329106617,1718109052906,-205.3436861,0.00022351,2]
[329106619,1718109052916,-153.0,0.00022351,2]
[329106621,1718109052927,-215.77996918,0.00022351,2]
[329106640,1718109053122,-500.0,0.00021917,2]
[329106642,1718109053132,-500.0,0.00022191,2]
[329106645,1718109053144,-500.0,0.00022191,2]
[329106646,1718109053155,-423.78802202,0.00022351,2]
[329106648,1718109053167,-419.0843305,0.00022351,2]
[329106650,1718109053178,-153.0,0.00022351,2]
[329106652,1718109053188,-153.0,0.00022351,2]
[329106654,1718109053199,-153.0,0.00022351,2]
[329106656,1718109053209,-153.0,0.00022351,2]
[329106658,1718109053220,-153.0,0.00022351,2]
[329106660,1718109053230,-153.0,0.00022351,2]
[329106663,1718109053240,-153.0,0.00022351,2]
[329106665,1718109053256,-4239.70515949,0.00022365,2]
[329106667,1718109053267,-39.45781639,0.00022431,2]
[329106683,1718109053438,-500.0,0.00021917,2]
[329106685,1718109053448,-482.78178849,0.00021917,2]
[329106706,1718109053650,-941.76228736,0.00021663,2]
[329106708,1718109053660,-17.21821151,0.00021917,2]
[329106717,1718109053749,-500.0,0.00021917,2]
[329106719,1718109053760,-151.0,0.00021917,2]
[329106721,1718109053771,-500.0,0.00022191,2]
[329106723,1718109053781,-500.0,0.00022191,2]
[329106725,1718109053792,-151.0,0.00022191,2]
[329106727,1718109053802,-101.37950113,0.00022309,2]
[329106748,1718109054030,-4049.99846754,0.00022309,2]
[329106750,1718109054040,-151.0,0.00022351,2]
[329106752,1718109054051,-127.20884961,0.00022431,2]
[329106754,1718109054063,-13483.94434315,0.00022465,2]
[329106756,1718109054073,-160.5333,0.00022465,2]
[329106757,1718109054083,-496.89412378,0.00022465,2]
[329106760,1718109054103,-13342.08408471,0.00022465,2]
[329106762,1718109054113,-500.0,0.00022465,2]
[329106764,1718109054124,-500.0,0.00022465,2]
[329106766,1718109054135,-500.0,0.00022465,2]
[329106768,1718109054145,-500.0,0.00022465,2]
[329106770,1718109054155,-500.0,0.00022465,2]
[329106772,1718109054165,-545.59805492,0.00022465,2]
[329106774,1718109054178,-500.0,0.00022465,2]
[329106776,1718109054188,-500.0,0.00022465,2]
[329106778,1718109054199,-500.0,0.00022465,2]
[329106779,1718109054208,-500.0,0.00022465,2]
[329106781,1718109054218,-500.0,0.00022465,2]
[329106783,1718109054228,-500.0,0.00022465,2]
[329106785,1718109054238,-500.0,0.00022465,2]
[329106787,1718109054249,-510.74944463,0.00022465,2]
[329106789,1718109054263,-500.0,0.00022465,2]
[329106791,1718109054273,-151.0,0.00022465,2]
[329106793,1718109054283,-500.0,0.00022465,2]
[329106795,1718109054293,-151.0,0.00022465,2]
[329106797,1718109054303,-500.0,0.00022465,2]
[329106799,1718109054313,-500.0,0.00022465,2]
[329106801,1718109054323,-512.93374244,0.00022465,2]
[329106803,1718109054333,-500.0,0.00022465,2]
[329106805,1718109054345,-500.0,0.00022465,2]
[329106807,1718109054356,-500.0,0.00022465,2]
[329106809,1718109054366,-500.0,0.00022465,2]
[329106810,1718109054376,-500.0,0.00022465,2]
[329106812,1718109054387,-500.0,0.00022465,2]
[329106814,1718109054397,-500.0,0.00022465,2]
[329106816,1718109054407,-500.0,0.00022465,2]
[329106818,1718109054418,-151.0,0.00022465,2]
[329106820,1718109054428,-500.0,0.00022465,2]
[329106822,1718109054438,-500.0,0.00022465,2]
[329106824,1718109054448,-151.0,0.00022465,2]
[329106826,1718109054459,-151.0,0.00022465,2]
[329106828,1718109054469,-508.94823559,0.00022465,2]
[329106829,1718109054480,-500.0,0.00022465,2]
[329106831,1718109054490,-500.0,0.00022465,2]
[329106833,1718109054500,-500.0,0.00022465,2]
[329106835,1718109054510,-500.0,0.00022465,2]
[329106837,1718109054520,-500.0,0.00022465,2]
[329106839,1718109054530,-500.0,0.00022465,2]
[329106841,1718109054540,-109.12699219,0.00022465,2]
[329106843,1718109054554,-394.46049596,0.00022465,2]
[329106845,1718109054564,-500.0,0.00022465,2]
[329106847,1718109054574,-32.74179525,0.00022465,2]
[329106849,1718109054587,-467.25820475,0.00022465,2]
[329106851,1718109054597,-500.0,0.00022465,2]
[329106853,1718109054608,-500.0,0.00022465,2]
[329106855,1718109054618,-500.0,0.00022465,2]
[329106857,1718109054628,-500.0,0.00022465,2]
[329106859,1718109054638,-500.0,0.00022465,2]
[329106861,1718109054649,-645.87,0.00022465,2]
[329106863,1718109054659,-500.0,0.00022465,2]
[329106865,1718109054669,-41.66294165,0.00022465,2]
[329108744,1718109415615,3081.87656697,0.000125,2]
[329108753,1718109683363,509.03647881,9.999e-05,2]
[329108754,1718109888273,1282.24587467,9.999e-05,2]
[329108787,1718109970877,369.24165648,9.999e-05,2]
[329108885,1718110239403,-1877.1524641,0.00016985,2]
[329108886,1718110239413,-646.40844723,0.00016986,2]
[329108887,1718110239824,-1390.88305133,0.00016986,2]
[329108888,1718110239834,-509.03647881,0.00016987,2]
[329108889,1718110239845,-3072.52405226,0.00016988,2]
[329108890,1718110239855,-1911.54148934,0.00016989,2]
[329108891,1718110239866,-1168.967474,0.00017023,2]
[329108892,1718110239877,-2523.5199442,0.00017024,2]
[329108893,1718110239888,-1281.8802491,0.00018031,2]
[329108894,1718110239898,-523.3760438,0.00018031,2]
[329108895,1718110239909,-272.51996637,0.00018031,2]
[329108896,1718110239920,-181.94756605,0.00018031,2]
[329108897,1718110239930,-530.20911563,0.00018032,2]
[329108898,1718110239941,-3927.90556248,0.00018033,2]
[329108899,1718110239954,-17672.509224,0.00018033,2]
[329108900,1718110239967,-2431.50095019,0.00018033,2]
[329108969,1718110252279,-24900.0,0.00016389,2]
[329108971,1718110252289,-3342.91450726,0.0001803,2]
[329108973,1718110252481,-7147.46064605,0.0001803,2]
[329108974,1718110252491,-262.82305725,0.00018322,2]
[329108975,1718110252501,-2031.01360472,0.00018323,2]
[329108976,1718110252514,-3823.00482547,0.00018423,2]
[329108987,1718110252867,-466.16787958,0.00018423,2]
[329108990,1718110253343,-869.94591213,0.00018423,2]
[329108991,1718110253356,-701.13410182,0.00018423,2]
[329108992,1718110253366,-168.06593368,0.000185,2]
[329108993,1718110253375,-168.06593366,0.000185,2]
[329108994,1718110253385,-168.06593366,0.000185,2]
[329108995,1718110253394,-1.16810218,0.000189,2]
[329108996,1718110253406,-610.0,0.000189,2]
[329108997,1718110253418,-938.78777917,0.000189,2]
[329108998,1718110253430,-160.053646,0.00019253,2]
[329108999,1718110253440,-2031.01360472,0.00019548,2]
[329109000,1718110253450,-529.07913635,0.0002,4]
[329109001,1718110253460,-2031.01360472,0.00020774,2]
[329109002,1718110253471,-7269.5959632,0.00021,2]
[329109003,1718110253480,-1929.96421265,0.00021033,2]
[329109004,1718110253491,-8164.27288949,0.00021279,2]
[329109005,1718110253500,-500.0,0.00021528,2]
[329109006,1718110253512,-296.69802221,0.00021528,2]
[329109007,1718110253521,-500.0,0.00021528,2]
[329109008,1718110253531,-153.0,0.00021529,2]
[329109009,1718110253541,-153.0,0.00021529,2]
[329109010,1718110253563,-153.0,0.00021529,2]
[329109011,1718110253575,-153.0,0.00021529,2]
[329109012,1718110253585,-380.1115978,0.00021529,2]
[329109013,1718110253595,-620.0005327,0.00021635,2]
[329109014,1718110253606,-208.36805602,0.0002166,2]
[329109015,1718110253616,-2682.75928745,0.0002166,2]
[329109016,1718110253626,-1982.90053047,0.00021661,2]
[329109017,1718110253636,-489.40086406,0.00021662,2]
[329109018,1718110253645,-388.7,0.00021759,3]
[329109019,1718110253655,-174.8,0.00021759,3]
[329109020,1718110253666,-153.16855127,0.00021814,2]
[329109021,1718110253676,-2035.21666597,0.00021816,2]
[329109022,1718110253687,-2000.0,0.00021817,2]
[329109023,1718110253697,-32968.43102202,0.00021817,3]
[329109024,1718110253708,-1342.59061452,0.00021914,2]
[329109025,1718110253721,-429.10056101,0.00021914,2]
[329109026,1718110253731,-155.15860759,0.00021914,2]
[329109027,1718110253740,-282.36642828,0.00021914,2]
[329109028,1718110253761,-759.67615126,0.00021914,2]
[329109029,1718110253776,-411.42673703,0.00021914,2]
[329109030,1718110253786,-200.33886083,0.00021914,2]
[329109031,1718110253796,-524.19655516,0.00021914,2]
[329109032,1718110253807,-275.59426284,0.00021914,2]
[329109033,1718110253817,-1501.26270931,0.00021914,2]
[329109034,1718110253827,-187.78108932,0.00021915,2]
[329109035,1718110253837,-187.30405388,0.00021915,2]
[329109036,1718110253848,-659.74061808,0.00021915,2]
[329109037,1718110253858,-3419.7794755,0.00021915,2]
[329109038,1718110253869,-500.0,0.00021915,2]
[329109039,1718110253879,-500.0,0.00021915,2]
[329109040,1718110253890,-500.0,0.00021915,2]
[329109041,1718110253900,-626.19588133,0.00021915,2]
[329109042,1718110253910,-500.0,0.00021915,2]
[329109043,1718110253921,-500.0,0.00021915,2]
[329109044,1718110253932,-500.0,0.00021915,2]
[329109045,1718110253942,-500.0,0.00021915,2]
[329109046,1718110253952,-500.0,0.00021915,2]
[329109047,1718110253963,-500.0,0.00021915,2]
[329109048,1718110253974,-500.0,0.00021915,2]
[329109049,1718110253985,-500.0,0.00021915,2]
[329109050,1718110253997,-500.0,0.00021915,2]
[329109051,1718110254006,-500.0,0.00021915,2]
[329109052,1718110254016,-598.48343717,0.00021915,2]
[329109053,1718110254028,-500.0,0.00021915,2]
[329109054,1718110254037,-500.0,0.00021915,2]
[329109055,1718110254047,-500.0,0.00021915,2]
[329109056,1718110254057,-500.0,0.00021915,2]
[329109057,1718110254072,-500.0,0.00021915,2]
[329109058,1718110254082,-500.0,0.00021915,2]
[329109059,1718110254092,-500.0,0.00021915,2]
[329109060,1718110254103,-500.0,0.00021915,2]
[329109061,1718110254113,-500.0,0.00021915,2]
[329109062,1718110254125,-500.0,0.00021915,2]
[329109063,1718110254136,-500.0,0.00021915,2]
[329109064,1718110254146,-500.0,0.00021915,2]
[329109065,1718110254157,-500.0,0.00021915,2]
[329109066,1718110254169,-500.0,0.00021915,2]
[329109067,1718110254179,-629.54503115,0.00021915,2]
[329109068,1718110254190,-500.0,0.00021915,2]
[329109069,1718110254200,-500.0,0.00021915,2]
[329109070,1718110254210,-500.0,0.00021915,2]
[329109071,1718110254220,-500.0,0.00021915,2]
[329109072,1718110254230,-500.0,0.00021915,2]
[329109073,1718110254242,-500.0,0.00021915,2]
[329109074,1718110254251,-500.0,0.00021915,2]
[329109075,1718110254261,-20837.39729141,0.00021916,2]
[329109076,1718110254271,-282.89897169,0.00021916,2]
[329109077,1718110254281,-2120.040004,0.00021917,15]
[329109078,1718110254291,-501.17999592,0.00021917,2]
[329109079,1718110254301,-513.73701891,0.00021917,2]
[329109080,1718110254311,-500.0,0.00021917,2]
[329109081,1718110254321,-500.0,0.00021917,2]
[329109082,1718110254330,-500.77156745,0.00021917,2]
[329109083,1718110254340,-500.0,0.00021917,2]
[329109084,1718110254350,-500.0,0.00021917,2]
[329109085,1718110254359,-500.0,0.00021917,2]
[329109086,1718110254370,-501.83515497,0.00021917,2]
[329109087,1718110254384,-500.0,0.00021917,2]
[329109088,1718110254394,-500.0,0.00021917,2]
[329109089,1718110254404,-500.0,0.00021917,2]
[329109090,1718110254414,-500.0,0.00021917,2]
[329109091,1718110254424,-426.10803577,0.00021917,2]
[329109092,1718110254440,-500.0,0.00021917,2]
[329109093,1718110254450,-500.0,0.00021917,2]
[329109094,1718110254460,-500.0,0.00021917,2]
[329109095,1718110254471,-502.58830659,0.00021917,2]
[329109096,1718110254484,-500.0,0.00021917,2]
[329109097,1718110254495,-500.0,0.00021917,2]
[329109098,1718110254506,-500.0,0.00021917,2]
[329109099,1718110254518,-500.0,0.00021917,2]
[329109100,1718110254528,-500.0,0.00021917,2]
[329109101,1718110254539,-500.0,0.00021917,2]
[329109102,1718110254548,-500.0,0.00021917,2]
[329109103,1718110254558,-500.0,0.00021917,2]
[329109104,1718110254568,-500.0,0.00021917,2]
[329109105,1718110254578,-501.38854039,0.00021917,2]
[329109106,1718110254589,-500.0,0.00021917,2]
[329109107,1718110254601,-500.0,0.00021917,2]
[329109108,1718110254612,-500.0,0.00021917,2]
[329109109,1718110254623,-500.0,0.00021917,2]
[329109110,1718110254634,-500.0,0.00021917,2]
[329109111,1718110254644,-501.88525869,0.00021917,2]
[329109112,1718110254654,-500.53355497,0.00021917,2]
[329109113,1718110254664,-211.99551839,0.00021917,2]
[329109114,1718110254676,-500.0,0.00021917,2]
[329109115,1718110254686,-500.89318047,0.00021917,2]
[329109116,1718110254700,-500.0,0.00021917,2]
[329109117,1718110254715,-500.0,0.00021917,2]
[329109118,1718110254726,-164.12035405,0.00021917,2]
[329109119,1718110254741,-500.0,0.00021917,2]
[329109120,1718110254751,-524.9819409,0.00021917,2]
[329109121,1718110254761,-500.48716466,0.00021917,2]
[329109122,1718110254772,-500.0,0.00021917,2]
[329109123,1718110254782,-514.91793982,0.00021917,2]
[329109124,1718110254793,-500.0,0.00021917,2]
[329109125,1718110254803,-500.0,0.00021917,2]
[329109126,1718110254813,-631.74508125,0.00021917,2]
[329109127,1718110254823,-500.0,0.00021917,2]
[329109128,1718110254833,-500.0,0.00021917,2]
[329109129,1718110254981,-500.0,0.00021917,2]
[329109130,1718110254992,-272.23,0.00021917,2]
[329109131,1718110255002,-500.0,0.00021917,2]
[329109132,1718110255012,-500.0,0.00021917,2]
[329109133,1718110255022,-500.0,0.00021917,2]
[329109134,1718110255032,-1000.0,0.00021917,2]
[329109135,1718110255043,-500.0,0.00021917,2]
[329109136,1718110255053,-501.30410275,0.00021917,2]
[329109137,1718110255064,-500.0,0.00021917,2]
[329109138,1718110255076,-500.0,0.00021917,2]
[329109139,1718110255086,-500.0,0.00021917,2]
[329109140,1718110255096,-501.71349734,0.00021917,2]
[329109141,1718110255106,-501.89900023,0.00021917,2]
[329109142,1718110255116,-500.0,0.00021917,2]
[329109143,1718110255126,-500.0,0.00021917,2]
[329109144,1718110255136,-444.66825364,0.00021917,2]
[329109145,1718110255146,-548.14989469,0.00021917,2]
[329109146,1718110255156,-500.0,0.00021917,2]
[329109147,1718110255166,-500.0,0.00021917,2]
[329109148,1718110255176,-500.0,0.00021917,2]
[329109149,1718110255189,-500.0,0.00021917,2]
[329109150,1718110255200,-500.0,0.00021917,2]
[329109151,1718110255211,-500.0,0.00021917,2]
[329109152,1718110255221,-500.0,0.00021917,2]
[329109153,1718110255231,-500.0,0.00021917,2]
[329109154,1718110255243,-618.77698139,0.00021917,2]
[329109155,1718110255263,-500.0,0.00021917,2]
[329109156,1718110255273,-500.0,0.00021917,2]
[329109157,1718110255284,-500.0,0.00021917,2]
[329109158,1718110255294,-500.0,0.00021917,2]
[329109159,1718110255305,-527.35950464,0.00021917,2]
[329109160,1718110255315,-637.43,0.00021917,2]
[329109161,1718110255325,-500.0,0.00021917,2]
[329109162,1718110255336,-500.0,0.00021917,2]
[329109163,1718110255346,-500.0,0.00021917,2]
[329109164,1718110255356,-500.0,0.00021917,2]
[329109165,1718110255367,-311.28308338,0.00021917,2]
[329109166,1718110255377,-501.02131947,0.00021917,2]
[329109167,1718110255387,-500.0,0.00021917,2]
[329109168,1718110255397,-500.0,0.00021917,2]
[329109169,1718110255407,-500.0,0.00021917,2]
[329109170,1718110255417,-151.65,0.00021917,2]
[329109171,1718110255428,-500.0,0.00021917,2]
[329109172,1718110255441,-502.03797108,0.00021917,2]
[329109173,1718110255451,-500.0,0.00021917,2]
[329109174,1718110255460,-500.0,0.00021917,2]
[329109175,1718110255471,-500.0,0.00021917,2]
[329109176,1718110255481,-500.0,0.00021917,2]
[329109177,1718110255491,-500.0,0.00021917,2]
[329109178,1718110255501,-588.52849861,0.00021917,2]
[329109179,1718110255513,-500.0,0.00021917,2]